Cogmind - Beta 12 @@@ ROGUE MODE // 2023.06.14 @ 01:26:19 Player: jKowalskii Result: Self-destructed Performance ------------- Evolutions (6) 3000 Regions Visited (14) 2800 Robots Destroyed (112) 560 Value Destroyed (5174) 5174 Prototype IDs (3) 60 Alien Tech Used (0) 0 Bonus (967) 967 TOTAL SCORE: 12561 Bonus ------- High Alert Combat Kills 176 Follower Combat Kills 788 Entered Garrisons 200 Friendly Fire -197 Cogmind --------- Core Integrity 707/1150 Matter 194/300 Energy 294/300 System Corruption 0% Temperature Cool (0) Movement Rolling (110) Ox1 Location -4/Factory Parts ------- > --- POWER (4) -------- (None) > --- PROPULSION (4) --- Centrium Wheel > --- UTILITY (7) ------ Advanced Heat Sink Medium Storage Unit Large Battery Encrypted Comm Array Advanced Targeting Computer Weapon Cycler Improved Transmission Jammer > --- WEAPON (4) ------- Plasma Rifle Heavy Plasma Cannon Improved Datajack > --- INVENTORY (10) --- Impulse Thruster Advanced Heat Sink Advanced Heat Sink Advanced Coolant Injector Advanced Targeting Computer Transmission Jammer Improved Reaction Control System Peak State ------------ > --- POWER ------------ Angular Momentum Engine Light Angular Momentum Engine Neutrino Core Neutrino Core > --- PROPULSION ------- Carbon-fiber Leg Myomer Leg Advanced VSS Leg > --- UTILITY ---------- Advanced Heat Sink Medium Storage Unit Large Battery Advanced Targeting Computer Weapon Cycler Transmission Jammer Improved Hacking Suite > --- WEAPON ----------- Phase Cannon Autogun Gauss Cannon Mass Driver > --- INVENTORY -------- Light Angular Momentum Engine Advanced Heat Sink Advanced Heat Sink Encrypted Comm Array Improved Reaction Control System Heavy Missile Launcher [Rating: 81] Favorites ----------- Power Light Angular Momentum Engine Engine Light Angular Momentum Engine Power Core Micro Nuclear Core Reactor Micro Antimatter Reactor Propulsion Armored Huge Wheel Leg Myomer Leg Wheel Armored Huge Wheel Hover Unit Gravmag System Flight Unit VTOL Module Utility Medium Storage Unit Device Advanced Heat Sink Storage Medium Storage Unit Processor Advanced Targeting Computer Hackware Improved Hacking Suite Protection Hardened Medium Armor Plating Weapon Magnetic Acceleration Cannon Energy Gun Heavy Laser Energy Cannon Phase Cannon Ballistic Gun Heavy Assault Rifle Ballistic Cannon Magnetic Acceleration Cannon Launcher Grenade Launcher Special Melee Weapon Improved Datajack Build | -11 -10 -9 -8 -8 -7 -6 -6 -6 -6 -6 -5 -5 -5 -4 ------- Run | Jun Mat Mat Mat Sto Fac Fac Was Fac Gar Fac Fac Upp Upp Fac Slots Evolved 12 | . . 2 2 . 2 2 . . . . 2 . . 2 Power 3 | . . 1 . . . 1 . . . . . . . 1 Propulsion 2 | . . . 1 . 1 . . . . . . . . . Utility 5 | . . . 1 . 1 1 . . . . 1 . . 1 Weapon 2 | . . 1 . . . . . . . . 1 . . . Parts Attached 166 | 6 18 5 25 7 12 16 5 1 25 6 5 13 1 21 Power 44 | 1 3 1 7 1 3 6 3 1 7 2 . 6 1 2 Engine 27 | 1 3 1 5 . 2 4 1 . 4 1 . 2 1 2 Core 14 | . . . 2 1 1 2 . 1 2 1 . 4 . . Reactor 3 | . . . . . . . 2 . 1 . . . . . Propulsion 34 | 2 4 1 5 . 2 . . . 12 1 3 3 . 1 Treads . | . . . . . . . . . . . . . . . Leg 3 | . . . . . . . . . . . . 3 . . Wheel 18 | 2 4 1 5 . 2 . . . 1 . 2 . . 1 Hover 6 | . . . . . . . . . 4 1 1 . . . Flight 7 | . . . . . . . . . 7 . . . . . Utility 39 | 1 5 . 5 2 4 6 . . 3 1 1 2 . 9 Device 27 | . 2 . 4 2 2 2 . . 3 1 . 2 . 9 Storage 7 | 1 2 . . . 1 3 . . . . . . . . Processor 2 | . 1 . . . . . . . . . 1 . . . Hackware 1 | . . . . . . 1 . . . . . . . . Protection 2 | . . . 1 . 1 . . . . . . . . . Artifact . | . . . . . . . . . . . . . . . Weapon 49 | 2 6 3 8 4 3 4 2 . 3 2 1 2 . 9 Energy Gun 21 | 1 2 . 4 2 3 2 1 . . . . 1 . 5 Energy Cannon 2 | . . . . . . . . . . 1 . . . 1 Ballistic Gun 13 | 1 2 3 2 1 . . 1 . 2 . 1 . . . Ballistic Cannon 5 | . . . 1 . . 1 . . . 1 . 1 . 1 Launcher 7 | . 2 . 1 1 . 1 . . 1 . . . . 1 Special Weapon . | . . . . . . . . . . . . . . . Impact Weapon . | . . . . . . . . . . . . . . . Slashing Weapon . | . . . . . . . . . . . . . . . Piercing Weapon . | . . . . . . . . . . . . . . . Special Melee Weapon 1 | . . . . . . . . . . . . . . 1 Unidentified Prototypes 3 | . . . . 3 . . . . . . . . . . Parts Lost 47 | . 7 . 9 2 2 2 . . 5 . . 3 . 17 Power 16 | . 1 . 3 1 1 2 . . 2 . . 1 . 5 Propulsion 9 | . 2 . 2 1 . . . . 1 . . . . 3 Utility 8 | . 1 . 2 . 1 . . . 1 . . 1 . 2 Weapon 14 | . 3 . 2 . . . . . 1 . . 1 . 7 Highest Loss Streak 17 | . 6 . 8 2 1 1 . . 2 . . 2 . 17 To Critical Strikes . | . . . . . . . . . . . . . . . Average Slot Usage (%) 85 | . 97 100 86 88 79 84 86 86 86 91 91 92 94 51 Engine 9 | . 13 22 13 8 6 10 10 . 10 13 11 9 5 . Core 4 | . . . 3 8 3 7 6 6 6 6 5 6 11 . Leg 2 | . . . . . . . . . . . . 12 17 1 Wheel 9 | . 27 22 20 17 15 13 13 13 3 . 2 2 . 1 Hover 3 | . . . . . . . . . 8 19 12 . . . Device 12 | . 4 . 12 17 16 18 13 13 12 13 11 11 11 19 Storage 11 | . 18 11 9 9 6 13 13 13 13 13 11 11 11 10 Processor 2 | . 4 11 3 . . . . . . . 5 5 5 5 Hackware 2 | . . . . . . 1 6 6 6 6 5 5 5 . Energy Gun 6 | . 4 . 8 14 15 15 7 6 6 . . 3 5 4 Energy Cannon 1 | . . . . . . . . . . 2 5 5 5 1 Ballistic Gun 7 | . 20 33 10 8 6 . 5 6 5 3 4 5 5 . Ballistic Cannon 3 | . . . 4 . . 3 6 6 6 12 11 6 5 . Naked Turns . | . . . . . . . . . . . . . . . Heaviest Build 93 | 8 26 33 43 35 39 55 63 64 65 70 73 78 79 93 Greatest Support 58 | 20 24 24 40 38 56 56 56 56 56 27 56 58 58 58 Greatest Overweight (x) 15 | . 1 1 2 . 1 . 1 1 15 3 2 2 1 8 Average Overweight (x) . | . . 1 . . . . . 1 1 2 1 1 1 3 Largest Inventory Capacity 10 | 5 10 10 10 10 10 10 10 10 10 10 10 10 10 10 Average Capacity 9 | 5 8 10 10 10 9 10 10 10 10 10 10 10 10 10 Most Carried 10 | 4 10 10 10 10 10 10 10 10 10 10 10 10 10 9 Average Carried 8 | . 7 9 9 9 8 9 10 10 9 9 9 9 9 5 Final Capacity 10 | 5 10 10 10 10 10 10 10 10 10 10 10 10 10 10 Final Carried 10 | 4 10 10 10 10 10 10 10 10 10 10 10 10 9 7 Class Distribution -------------------- 52% | Scavenger-Gunner 15% | Mutant 11% | Gunner 8% | Scavenger-Tank 7% | Tank 4% | Scavenger-Mutant Dominant Class ---------------- Mutant | -10/Materials Gunner | -9/Materials Scavenger-Gunner | -8/Materials Scavenger-Gunner | -8/Storage Scavenger-Tank | -7/Factory Scavenger-Tank | -6/Factory Tank | -6/Waste Tank | -6/Factory Scavenger-Gunner | -6/Garrison Scavenger-Gunner | -6/Factory Scavenger-Gunner | -5/Factory Scavenger-Gunner | -5/Upper Caves Scavenger-Gunner | -5/Upper Caves Mutant | -4/Factory Resources | -11 -10 -9 -8 -8 -7 -6 -6 -6 -6 -6 -5 -5 -5 -4 ----------- Run | Jun Mat Mat Mat Sto Fac Fac Was Fac Gar Fac Fac Upp Upp Fac Matter Collected 4056 | 291 191 186 638 308 295 127 137 44 857 208 99 425 90 160 Remotely . | . . . . . . . . . . . . . . . Salvage Created 4176 | 55 370 244 664 513 396 371 . 48 577 . 24 518 135 261 Parts 203 | 4 33 20 42 24 17 12 . 1 24 . 2 14 3 7 Haulers Intercepted 1 | . . . . . . . . . . . . . . 1 Recyclers Shooed 1 | . . . . . . 1 . . . . . . . . Parts Field Recycled . | . . . . . . . . . . . . . . . Retrieved Matter . | . . . . . . . . . . . . . . . Parts Self-Destructed 29 | . . . . . . . . . . . . 22 7 . Prevented 5 | . . . . . . . . . . . . 4 1 . Kills | -11 -10 -9 -8 -8 -7 -6 -6 -6 -6 -6 -5 -5 -5 -4 ------- Run | Jun Mat Mat Mat Sto Fac Fac Was Fac Gar Fac Fac Upp Upp Fac Combat Hostiles Destroyed 86 | 1 10 4 13 13 6 6 . 1 15 . 1 9 3 4 Guns 56 | 1 9 4 7 12 6 4 . . 8 . . 4 . 1 Cannons 18 | . . . 3 . . . . 1 5 . 1 4 2 2 AOE 11 | . 1 . 3 1 . 2 . . 2 . . 1 1 . Classes Destroyed 16 | 2 4 2 2 2 . 1 . . 1 . . 1 . 1 Worker 4 | 1 . . 1 . 2 . . . . . . . . . Builder 5 | . 2 . 3 . . . . . . . . . . . Hauler 1 | . . . . . . . . . . . . . . 1 Recycler 2 | . . . . 1 . 1 . . . . . . . . Mechanic 1 | . . . . . . 1 . . . . . . . . Operator 3 | . 2 . . . . . . . . . . . . 1 Watcher 13 | . 3 2 3 2 1 2 . . . . . . . . Swarmer 16 | . 6 . . 4 . 2 . . 3 . 1 . . . Grunt 46 | 1 4 2 9 4 5 3 . . 7 . . 4 3 4 Brawler 5 | . . 1 . . . 1 . . 1 . . 2 . . Duelist 2 | . . . . . . . . . . . . 2 . . Sentry 8 | . . 1 2 2 1 . . 1 1 . . . . . Hunter 1 | . . . 1 . . . . . . . . . . . Programmer 4 | . . . . . . . . . 3 . . 1 . . Heavy 1 | . . . 1 . . . . . . . . . . . Assembled 3 | . . . . 3 . . . . . . . . . . Best Kill Streak 7 | 1 6 5 4 5 2 7 . 1 4 . 1 5 3 2 Combat Bots Only 5 | 1 4 2 3 4 2 3 . 1 4 . 1 5 3 1 Max Kills in Single Turn 3 | 1 3 1 2 2 1 3 . 1 2 . 1 1 1 1 Gunslinging 1 | . 1 . . . . . . . . . . . . . Exploded 2 | . 1 . 2 1 . 2 . . 1 . . 1 1 . Melee . | . . . . . . . . . . . . . . . Uniques/NPCs Destroyed . | . . . . . . . . . . . . . . . Combat | -11 -10 -9 -8 -8 -7 -6 -6 -6 -6 -6 -5 -5 -5 -4 -------- Run | Jun Mat Mat Mat Sto Fac Fac Was Fac Gar Fac Fac Upp Upp Fac Damage Taken 7618 | 11 537 108 1488 361 636 510 . 126 1083 154 13 612 225 1754 Core 1289 | 11 131 40 283 48 51 67 . 12 147 . . 56 . 443 Absorbed by Shields 426 | . . . . . . 188 . 57 181 . . . . . Regen/Repaired (Parts) 288 | . . . . 27 246 . . . . 15 . . . . Core Remaining (%) 75 | 95 43 90 . 39 92 . . . . 73 . . 94 . Volleys Fired 330 | 3 28 14 67 33 32 24 . 6 62 5 2 20 8 26 Largest 4 | 2 2 3 3 3 3 3 . 3 3 3 4 4 4 4 Hottest 216 | 60 60 69 157 142 151 187 . 157 161 186 209 216 216 213 Shots Fired 903 | 6 56 42 168 98 94 66 . 18 175 11 7 80 32 50 Gun 685 | 6 56 42 136 94 94 61 . 12 115 . 1 30 16 22 Cannon 205 | . . . 30 1 . 2 . 6 57 11 6 50 16 26 Launcher 13 | . . . 2 3 . 3 . . 3 . . . . 2 Special . | . . . . . . . . . . . . . . . Kinetic 495 | 3 41 42 115 33 32 2 . 12 116 10 5 50 16 18 Thermal 359 | . . . 51 62 62 61 . 6 56 1 2 20 8 30 Explosive 10 | . . . 2 . . 3 . . 3 . . . . 2 Electromagnetic 39 | 3 15 . . 3 . . . . . . . 10 8 . Robot Hit Streak 25 | 4 6 5 25 9 10 4 . 5 6 4 1 9 4 11 Robot Miss Streak 9 | 1 6 4 4 3 3 8 . 6 9 2 4 7 2 3 Penetration Max 1 | . . . 1 . . . . . 1 . . . 1 . Secondary Targets 7 | . 2 1 . 3 . 1 . . . . . . . . Max Gunslinging Chain 1 | . 1 1 . 1 . 1 . . . . . . . . Shots Hit Robots 460 | 4 28 19 101 50 61 24 . 9 61 5 2 43 21 32 Core Hits 221 | 2 19 9 43 24 18 24 . 3 37 2 1 21 10 8 Critical Kills . | . . . . . . . . . . . . . . . Critical Parts Destroyed 1 | . . . . . . . . . 1 . . . . . Critical Strikes 23 | . . . 4 6 2 3 . . 3 . . 3 1 1 Burn 16 | . . . 4 6 2 3 . . . . . . . 1 Destroy 1 | . . . . . . . . . 1 . . . . . Blast 6 | . . . . . . . . . 2 . . 3 1 . Melee Attacks 3 | . . . . . . . . . . . . . . 3 Impact . | . . . . . . . . . . . . . . . Slashing . | . . . . . . . . . . . . . . . Piercing . | . . . . . . . . . . . . . . . Sneak Attacks 2 | . . . . . . . . . . . . . . 2 Combat Hostiles . | . . . . . . . . . . . . . . . Follow-up Attacks . | . . . . . . . . . . . . . . . Damage Inflicted 12375 | 52 901 301 2314 930 1029 869 . 211 2234 167 90 1292 837 1148 Guns 6585 | 52 455 301 1366 858 1029 369 . 115 1116 . . 277 248 399 Cannons 3311 | . . . 723 . . . . 96 576 167 90 940 327 392 Explosions 2479 | . 446 . 225 72 . 500 . . 542 . . 75 262 357 Melee . | . . . . . . . . . . . . . . . Ramming . | . . . . . . . . . . . . . . . Kinetic 5858 | 25 360 301 1484 293 351 . . 193 1334 135 59 751 255 317 Thermal 4090 | . 89 . 605 565 678 369 . 18 358 32 31 425 446 474 Explosive 2003 | . 357 . 225 22 . 500 . . 542 . . . . 357 Electromagnetic 424 | 27 95 . . 50 . . . . . . . 116 136 . Impact . | . . . . . . . . . . . . . . . Slashing . | . . . . . . . . . . . . . . . Piercing . | . . . . . . . . . . . . . . . Highest Corruption 2 | . . . . . . . . . 2 2 . . . . Average Corruption 2 | . . . . . . . . . 2 2 . . . . Corruption Purged . | . . . . . . . . . . . . . . . Corruption Blocked . | . . . . . . . . . . . . . . . Effects 30 | . . . . . . . . . 25 5 . . . . Message Errors 5 | . . . . . . . . . 3 2 . . . . Matter Fused 12 | . . . . . . . . . 10 2 . . . . Heat Flow Errors 1 | . . . . . . . . . 1 . . . . . Energy Discharges 7 | . . . . . . . . . 6 1 . . . . Data Loss (minor) 4 | . . . . . . . . . 4 . . . . . Alerts 1 | . . . . . . . . . 1 . . . . . Overload Shots . | . . . . . . . . . . . . . . . Overflow Damage 368 | . 222 . 66 . . . . . 54 . . . 9 17 Projectiles 116 | . . . 66 . . . . . 26 . . . 9 15 Explosions 252 | . 222 . . . . . . . 28 . . . . 2 Melee . | . . . . . . . . . . . . . . . Knockbacks 14 | . . . 5 . . . . 1 1 . . 1 2 4 Impact . | . . . . . . . . . . . . . . . Kinetic 13 | . . . 4 . . . . 1 1 . . 1 2 4 Secondary 1 | . . . 1 . . . . . . . . . . . Self-Inflicted Damage 251 | . 211 . . 23 . . . . . . . . . 17 Shots 5 | . 3 . . 1 . . . . . . . . . 1 Rammed . | . . . . . . . . . . . . . . . Targets Rammed . | . . . . . . . . . . . . . . . Kicked . | . . . . . . . . . . . . . . . Crushed . | . . . . . . . . . . . . . . . Highest Temperature 543 | 6 99 107 283 446 468 306 . 270 388 99 102 543 466 495 Average Temperature 147 | 6 40 39 90 193 216 124 . 122 135 29 48 229 255 186 Received Heat Transfer 2161 | 6 141 27 369 125 318 84 . 36 221 9 . 126 162 537 Effects 52 | . . . 3 13 9 . . . 6 . . 9 6 6 Shutdowns 27 | . . . . 4 5 . . . 4 . . 6 4 4 Energy Bleed 4 | . . . 1 . 1 . . . . . . . 1 1 Interference 11 | . . . 2 7 . . . . 2 . . . . . Matter Decay 1 | . . . . . 1 . . . . . . . . . Short Circuit 2 | . . . . . . . . . . . . . 1 1 Damage (minor) 2 | . . . . . 2 . . . . . . . . . Damage (major) 5 | . . . . 2 . . . . . . . 3 . . Siege Activations . | . . . . . . . . . . . . . . . Robots Corrupted . | . . . . . . . . . . . . . . . Combat Hostiles . | . . . . . . . . . . . . . . . Parts Fried . | . . . . . . . . . . . . . . . Impact Corruptions . | . . . . . . . . . . . . . . . Robots Melted 3 | . . . . 1 . . . . . . . . . 2 Combat Hostiles 1 | . . . . . . . . . . . . . . 1 Parts Melted 13 | . . . 1 6 6 . . . . . . . . . Heat Transferred 8957 | . 100 . 1665 1665 1665 1147 . 37 666 37 37 457 422 1059 Parts Sabotaged . | . . . . . . . . . . . . . . . Parts Stolen . | . . . . . . . . . . . . . . . Parts Stripped . | . . . . . . . . . . . . . . . Power Chain Reactions 4 | . 1 . . 1 . . . . . . . 1 1 . Missiles Intercepted . | . . . . . . . . . . . . . . . Alert | -11 -10 -9 -8 -8 -7 -6 -6 -6 -6 -6 -5 -5 -5 -4 ------- Run | Jun Mat Mat Mat Sto Fac Fac Was Fac Gar Fac Fac Upp Upp Fac Peak Influence 1483 | 25 238 198 322 517 278 379 63 113 1483 1005 619 . . 215 Initial 778 | . 16 37 83 132 167 91 63 44 79 778 492 . . 138 Average 415 | 4 109 152 217 323 165 275 63 67 879 865 587 . . 82 Maximum Alert Level 4 | . 1 . 1 2 1 1 . . 4 3 2 . . 1 Low Security (%) 45 | 100 89 100 36 15 76 37 100 100 3 . . . . 98 Level 1 18 | . 10 . 63 63 23 62 . . 2 . . . . 1 Level 2 12 | . . . . 21 . . . . 20 . 100 . . . Level 3 13 | . . . . . . . . . 35 100 . . . . Level 4 11 | . . . . . . . . . 37 . . . . . Level 5 . | . . . . . . . . . . . . . . . High Security . | . . . . . . . . . . . . . . . Max Security . | . . . . . . . . . . . . . . . Squads Dispatched 8 | . 1 . 1 . 1 . . . . 1 1 . . 3 Investigation 3 | . . . . . 1 . . . . . 1 . . 1 Extermination 1 | . . . . . . . . . . . . . . 1 Reinforcement 4 | . 1 . 1 . . . . . . 1 . . . 1 Assault . | . . . . . . . . . . . . . . . Garrison . | . . . . . . . . . . . . . . . Intercept . | . . . . . . . . . . . . . . . Searches Triggered . | . . . . . . . . . . . . . . . Construction Impeded . | . . . . . . . . . . . . . . . Haulers Reinforced . | . . . . . . . . . . . . . . . Active Scanning Responses . | . . . . . . . . . . . . . . . Cargo Convoy Interrupts . | . . . . . . . . . . . . . . . Stealth | -11 -10 -9 -8 -8 -7 -6 -6 -6 -6 -6 -5 -5 -5 -4 --------- Run | Jun Mat Mat Mat Sto Fac Fac Was Fac Gar Fac Fac Upp Upp Fac Distress Signals 7 | . 1 1 3 1 . 1 . . . . . . . . Communications Jammed 42 | . . . 2 20 . 20 . . . . . . . . Distress Signals 42 | . . . 2 20 . 20 . . . . . . . . Times Spotted 155 | 1 16 7 24 18 8 11 . 2 28 6 5 14 5 10 Peak Tracking Total 7 | 1 5 4 6 6 3 6 . 1 7 4 4 7 5 4 Tactical Retreats 5 | . . . 3 2 . . . . . . . . . . Traps | -11 -10 -9 -8 -8 -7 -6 -6 -6 -6 -6 -5 -5 -5 -4 ------- Run | Jun Mat Mat Mat Sto Fac Fac Was Fac Gar Fac Fac Upp Upp Fac Traps Triggered 9 | . 2 . . 2 . 2 . . 2 . . . . 1 Indirectly . | . . . . . . . . . . . . . . . Trap Hack Attempts . | . . . . . . . . . . . . . . . Triggered . | . . . . . . . . . . . . . . . Disarmed . | . . . . . . . . . . . . . . . Reprogrammed . | . . . . . . . . . . . . . . . Reused . | . . . . . . . . . . . . . . . Traps Extracted . | . . . . . . . . . . . . . . . Installed . | . . . . . . . . . . . . . . . Triggered . | . . . . . . . . . . . . . . . Machines | -11 -10 -9 -8 -8 -7 -6 -6 -6 -6 -6 -5 -5 -5 -4 ---------- Run | Jun Mat Mat Mat Sto Fac Fac Was Fac Gar Fac Fac Upp Upp Fac Machines Disabled 22 | . 3 2 1 3 . 2 . 1 8 . . 1 . 1 Max in Single Turn 2 | . 2 2 1 1 . 2 . 1 2 . . 1 . 1 Garrison Access 1 | . . . . . . . . . . . . . . 1 Garrison Relay 5 | . . . . . . . . . 5 . . . . . Machines Repaired . | . . . . . . . . . . . . . . . Machines Sabotaged . | . . . . . . . . . . . . . . . Overloaded Fab Kills . | . . . . . . . . . . . . . . . Hacking | -11 -10 -9 -8 -8 -7 -6 -6 -6 -6 -6 -5 -5 -5 -4 --------- Run | Jun Mat Mat Mat Sto Fac Fac Was Fac Gar Fac Fac Upp Upp Fac Machines Accessed 37 | . 10 1 . 6 5 2 . 2 3 2 3 . . 3 Terminals 23 | . 7 . . 4 3 2 . 1 3 1 1 . . 1 Fabricators 3 | . . . . . 1 . . . . . 1 . . 1 Repair Stations 4 | . 1 . . 1 1 . . . . 1 . . . . Recycling Units 3 | . 2 . . 1 . . . . . . . . . . Scanalyzers 1 | . . 1 . . . . . . . . . . . . Garrison Access 3 | . . . . . . . . 1 . . 1 . . 1 Total Hacks 93 | . 33 2 . 14 10 3 . 2 6 4 10 . . 9 Successful 54 | . 17 2 . 11 5 3 . 1 3 3 4 . . 5 Failed 38 | . 16 . . 2 5 . . 1 3 1 6 . . 4 Catastrophic 6 | . 4 . . 1 . . . 1 . . . . . . Database Lockouts 1 | . . . . 1 . . . . . . . . . . Manual 8 | . 5 . . 3 . . . . . . . . . . Terminals 55 | . 21 . . 11 4 3 . 1 6 1 4 . . 4 Fabricators 8 | . . . . . 3 . . . . . 2 . . 3 Repair Stations 10 | . 2 . . 2 3 . . . . 3 . . . . Recycling Units 11 | . 10 . . 1 . . . . . . . . . . Scanalyzers 2 | . . 2 . . . . . . . . . . . . Garrison Access 7 | . . . . . . . . 1 . . 4 . . 2 Terminal Hacks 30 | . 10 . . 8 1 3 . . 3 1 2 . . 2 Record 18 | . 7 . . 5 . 2 . . . . 2 . . 2 Part Schematic 1 | . . . . 1 . . . . . . . . . . Robot Analysis 1 | . 1 . . . . . . . . . . . . . Open Door 2 | . . . . 1 . . . . 1 . . . . . Open DSF 3 | . . . . . 1 1 . . . 1 . . . . Maintenance Status 1 | . 1 . . . . . . . . . . . . . Extermination Status 1 | . . . . 1 . . . . . . . . . . Zone Layout 1 | . 1 . . . . . . . . . . . . . Garrison Registry 2 | . . . . . . . . . 2 . . . . . Fabricator Hacks 4 | . . . . . 2 . . . . . . . . 2 Load Schematic 2 | . . . . . 1 . . . . . . . . 1 Build 2 | . . . . . 1 . . . . . . . . 1 Repair Station Hacks 7 | . 1 . . 2 2 . . . . 2 . . . . Scan Component 3 | . . . . 1 1 . . . . 1 . . . . Repair 3 | . . . . 1 1 . . . . 1 . . . . Refit 1 | . 1 . . . . . . . . . . . . . Recycling Unit Hacks 7 | . 6 . . 1 . . . . . . . . . . Process 1 | . 1 . . . . . . . . . . . . . Report Inventory 4 | . 3 . . 1 . . . . . . . . . . Retrieve Matter 1 | . 1 . . . . . . . . . . . . . Retrieve Components 1 | . 1 . . . . . . . . . . . . . Scanalyzer 2 | . . 2 . . . . . . . . . . . . Insert Component 1 | . . 1 . . . . . . . . . . . . Analyze 1 | . . 1 . . . . . . . . . . . . Garrison Access Hacks 4 | . . . . . . . . 1 . . 2 . . 1 Unlock Access 2 | . . . . . . . . 1 . . 1 . . . Seal Access 1 | . . . . . . . . . . . . . . 1 Coupler Status 1 | . . . . . . . . . . . 1 . . . Unauthorized Hacks . | . . . . . . . . . . . . . . . Terminals . | . . . . . . . . . . . . . . . Fabricators . | . . . . . . . . . . . . . . . Repair Stations . | . . . . . . . . . . . . . . . Recycling Units . | . . . . . . . . . . . . . . . Scanalyzers . | . . . . . . . . . . . . . . . Garrison Access . | . . . . . . . . . . . . . . . Data Cores Recovered . | . . . . . . . . . . . . . . . Used . | . . . . . . . . . . . . . . . Hacking Detections 32 | . 10 1 . 4 5 2 . 1 2 1 3 . . 3 Full Trace Events 4 | . . . . . 1 . . . 1 . 1 . . 1 Feedback Events . | . . . . . . . . . . . . . . . Feedback Blocked . | . . . . . . . . . . . . . . . Robot Schematics Acquired . | . . . . . . . . . . . . . . . Robots Built . | . . . . . . . . . . . . . . . Authchips . | . . . . . . . . . . . . . . . Time . | . . . . . . . . . . . . . . . Total Robot Build Rating . | . . . . . . . . . . . . . . . Part Schematics Acquired 2 | . . 1 . 1 . . . . . . . . . . Parts Built 4 | . . . . . 2 . . . . . . . . 2 Authchips . | . . . . . . . . . . . . . . . Time 126 | . . . . . 42 . . . . . . . . 84 Total Part Build Rating 16 | . . . . . 8 . . . . . . . . 8 Parts Repaired 3 | . . . . 1 1 . . . . 1 . . . . Time 54 | . . . . 19 13 . . . . 22 . . . . Parts Recycled . | . . . . . . . . . . . . . . . Recycled Matter 73 | . 73 . . . . . . . . . . . . . Retrieved Matter 73 | . 73 . . . . . . . . . . . . . Retrieved Components 10 | . 10 . . . . . . . . . . . . . Parts Scanalyzed 1 | . . 1 . . . . . . . . . . . . Part Schematics Acquired 1 | . . 1 . . . . . . . . . . . . Parts Damaged . | . . . . . . . . . . . . . . . Bothacking | -11 -10 -9 -8 -8 -7 -6 -6 -6 -6 -6 -5 -5 -5 -4 ------------ Run | Jun Mat Mat Mat Sto Fac Fac Was Fac Gar Fac Fac Upp Upp Fac Used RIF Installer . | . . . . . . . . . . . . . . . Robots Hacked 1 | . . . . . . . . . . . . . . 1 Non-combat 1 | . . . . . . . . . . . . . . 1 Combat . | . . . . . . . . . . . . . . . Robot Hacks Applied 2 | . . . . . . . . . . . . . . 2 parse_system 1 | . . . . . . . . . . . . . . 1 no_distress 1 | . . . . . . . . . . . . . . 1 Relay Couplers Released 17 | . . . . . . . . . 17 . . . . . Machine Destruction 17 | . . . . . . . . . 17 . . . . . Fabnet Peak Effective % . | . . . . . . . . . . . . . . . Robots Rewired 5 | . . . . . . . . . 3 . . 2 . . Allies Hacked . | . . . . . . . . . . . . . . . Hacks Repelled . | . . . . . . . . . . . . . . . Allies | -11 -10 -9 -8 -8 -7 -6 -6 -6 -6 -6 -5 -5 -5 -4 -------- Run | Jun Mat Mat Mat Sto Fac Fac Was Fac Gar Fac Fac Upp Upp Fac Total Allies 8 | . . . . . . . 1 . 5 . . 2 . . Largest Group 5 | . . . . . . . 1 1 5 5 3 3 2 . Highest-Rated Group 301 | . . . . . . . 31 31 301 301 192 192 59 . Highest-Rated Ally 95 | . . . . . . . 31 31 95 95 95 95 30 . Total Orders . | . . . . . . . . . . . . . . . Ally Attacks 101 | . . . . . . . . 3 42 20 6 18 12 . Total Damage 2104 | . . . . . . . . 62 705 591 232 360 154 . Kills 28 | . . . . . . . . . 12 8 2 5 1 . Allies Corrupted . | . . . . . . . . . . . . . . . Allies Melted . | . . . . . . . . . . . . . . . Intel | -11 -10 -9 -8 -8 -7 -6 -6 -6 -6 -6 -5 -5 -5 -4 ------- Run | Jun Mat Mat Mat Sto Fac Fac Was Fac Gar Fac Fac Upp Upp Fac Robot Analysis Total 1 | . 1 . . . . . . . . . . . . . Derelict Logs Recovered 2 | . . . . . . . . . . . . 1 1 . Drone Launches . | . . . . . . . . . . . . . . . Drone Recoveries . | . . . . . . . . . . . . . . . Exploration | -11 -10 -9 -8 -8 -7 -6 -6 -6 -6 -6 -5 -5 -5 -4 ------------- Run | Jun Mat Mat Mat Sto Fac Fac Was Fac Gar Fac Fac Upp Upp Fac Turns Passed 9284 | 79 985 318 655 524 739 481 123 142 2291 210 378 1222 292 845 Spaces Moved 5537 | 78 934 226 370 339 515 366 114 106 1095 93 230 688 142 241 Core 136 | 16 . . . . . . . . . . . . . 120 Treads . | . . . . . . . . . . . . . . . Legs 625 | . . . . . . . . . . . . 460 142 23 Wheels 3899 | 62 934 226 370 339 515 366 114 106 471 . 70 228 . 98 Hover 859 | . . . . . . . . . 606 93 160 . . . Flight 18 | . . . . . . . . . 18 . . . . . Fastest Speed 50 | 50 80 105 90 90 100 100 100 115 100 172 115 115 186 110 Average Speed 133 | 73 88 105 94 90 100 100 100 115 182 175 154 162 186 238 Slowest Speed 1235 | 80 100 105 120 100 115 100 115 115 1235 236 172 260 186 450 Overloaded Moves . | . . . . . . . . . . . . . . . Propulsion Burnouts . | . . . . . . . . . . . . . . . Robots Hopped 1 | . . . . . . . . . . . . . 1 . Cave-ins Triggered . | . . . . . . . . . . . . . . . Exploration Rate (%) 33 | 8 98 34 25 49 11 10 71 4 82 3 7 73 17 5 Regions Visited 14 Branch Regions 3 Pre-discovered Areas 1 | . . . . . . . . . . . . 1 . . Known Exits Taken 2 | . . . . . . . . 1 . . . 1 . . Unknown Exits Taken 9 | 1 1 1 1 1 1 . . . . 1 1 . 1 . Scrap Searched 8 | . . . . . . . . . . . . 5 3 . Spaces Dug 1 | . . . . . . . . . 1 . . . . . Terrain Destroyed 230 | . 22 . 26 17 . 67 . 5 19 3 1 23 3 44 Melee . | . . . . . . . . . . . . . . . Projectile 73 | . . . 21 . . 1 . 5 10 3 1 18 2 12 AOE 157 | . 22 . 5 17 . 66 . . 9 . . 5 1 32 Terrain Rammed . | . . . . . . . . . . . . . . . Walls Destroyed . | . . . . . . . . . . . . . . . Machines Disabled . | . . . . . . . . . . . . . . . Actions | -11 -10 -9 -8 -8 -7 -6 -6 -6 -6 -6 -5 -5 -5 -4 --------- Run | Jun Mat Mat Mat Sto Fac Fac Was Fac Gar Fac Fac Upp Upp Fac Total 6782 | 90 1035 277 521 495 680 430 123 113 1261 129 248 752 155 473 Wait 525 | . 28 23 22 103 102 11 . . 16 22 3 14 5 176 Move 5520 | 77 933 225 369 338 514 366 113 105 1092 92 229 687 139 241 Hop 1 | . . . . . . . . . . . . . 1 . Pick Up 76 | 4 15 5 16 7 12 4 . . 5 1 3 1 . 3 Fast Attach 76 | 6 9 . 11 5 7 4 3 . 11 2 4 3 . 11 Attach 47 | . 7 2 10 1 5 4 . . 4 1 1 3 1 8 Detach 5 | . 3 . . . . 1 . . . . . . . 1 Swap 43 | . 2 3 4 1 . 8 2 1 10 3 . 7 . 2 Drop 102 | . 10 5 22 7 8 8 5 1 17 3 6 7 1 2 Fire 330 | 3 28 14 67 33 32 24 . 6 62 5 2 20 8 26 Melee 3 | . . . . . . . . . . . . . . 3 Ram . | . . . . . . . . . . . . . . . Kick . | . . . . . . . . . . . . . . . Crush . | . . . . . . . . . . . . . . . Escape Stasis 26 | . . . . . . . . . 26 . . . . . Rewire 28 | . . . . . . . . . 18 . . 10 . . Trap . | . . . . . . . . . . . . . . . Miscellaneous . | . . . . . . . . . . . . . . . Route ------- -11/Junkyard -10/Materials (discovered 4 exits: *Mat x3 / [*Min]) -9/Materials (discovered 2 exits: [*Mat] / [*Min]) -8/Materials (discovered 3 exits: *Fac / *Sto x2) -8/Storage -7/Factory (discovered 2 exits: *Fac / [*Low]) -6/Factory -6/Waste -6/Factory -6/Garrison (discovered 3 exits: *Fac x3) -6/Factory -5/Factory (discovered 2 exits: [*Upp] / Gar) -5/Upper Caves -5/Upper Caves -4/Factory History --------- Turn | Location | Event 2 | -11/Junkyard | Met Revision 17 64 | -11/Junkyard | Discovered new exit (range 8) 80 | -11/Junkyard | Entered Materials 229 | -10/Materials | Core integrity fell below 50% 239 | -10/Materials | Discovered new exit (range 15) 259 | -10/Materials | Lost 6 parts (1p2n1u2w) 328 | -10/Materials | Build established: Mutant 360 | -10/Materials | Discovered new exit (range 4) 664 | -10/Materials | Discovered new exit (range 11) 695 | -10/Materials | Discovered new exit (range 15) 1065 | -10/Materials | Entered another Materials area 1065 | -9/Materials | Evolved 2 slots: Power x1, Weapon x1 1252 | -9/Materials | Discovered new exit (range 16) 1379 | -9/Materials | Build established: Gunner 1380 | -9/Materials | Discovered new exit (range 4) 1383 | -9/Materials | Entered another Materials area 1383 | -8/Materials | Evolved 2 slots: Propulsion x1, Utility x1 1572 | -8/Materials | Discovered new exit (range 5) 1579 | -8/Materials | Discovered new exit (range 13) 1630 | -8/Materials | Found Prototype Device 1635 | -8/Materials | Lost 8 parts (2p2n2u2w) 1803 | -8/Materials | Discovered new exit (range 15) 1890 | -8/Materials | Core integrity fell below 50% 2038 | -8/Materials | Entered Storage 2110 | -8/Storage | Central database locked down 2122 | -8/Storage | Build established: Scavenger-Gunner 2156 | -8/Storage | Repaired Lgt. Nuclear Core 2541 | -8/Storage | Assembled infested ambush trap array 2556 | -8/Storage | Discovered new exit (range 5) 2562 | -8/Storage | Entered Factory 2562 | -7/Factory | Evolved 2 slots: Propulsion x1, Utility x1 2903 | -7/Factory | Fabricated Arm. Huge Wheel? 2929 | -7/Factory | Discovered new exit (range 5) 3104 | -7/Factory | Repaired Med. Storage Unit 3261 | -7/Factory | Discovered new exit (range 15) 3301 | -7/Factory | Entered another Factory area 3301 | -6/Factory | Evolved 2 slots: Power x1, Utility x1 3362 | -6/Factory | Build established: Scavenger-Tank 3782 | -6/Factory | Sucked down chute 3782 | -6/Factory | Entered Waste 3782 | -6/Waste | The area was eerily silent 3783 | -6/Waste | Met a frightened Derelict 3878 | -6/Waste | Discovered new exit (range 16) 3905 | -6/Waste | Entered Factory 3905 | -6/Factory | Accompanied by 1 ally 3977 | -6/Factory | Build established: Tank 4044 | -6/Factory | Identified exit to Garrison 4047 | -6/Factory | Entered Garrison 4047 | -6/Garrison | Accompanied by 1 ally 4074 | -6/Garrison | Triggered checkpoint 4119 | -6/Garrison | Triggered checkpoint 4230 | -6/Garrison | Triggered checkpoint 4296 | -6/Garrison | Discovered new exit (range 44) 4296 | -6/Garrison | Discovered new exit (range 45) 4296 | -6/Garrison | Discovered new exit (range 51) 4466 | -6/Garrison | Garrison Relay disabled 4487 | -6/Garrison | Build established: Gunner 4653 | -6/Garrison | Garrison Relay disabled 5017 | -6/Garrison | Build established: Scavenger-Gunner 5076 | -6/Garrison | Garrison Relay disabled 5354 | -6/Garrison | Found embedded Infiltrators 5380 | -6/Garrison | Triggered checkpoint 5418 | -6/Garrison | Garrison Relay disabled 5839 | -6/Garrison | Attempted to access garrison exit controls, blocked by remote lockdown 6092 | -6/Garrison | Garrison Relay disabled 6187 | -6/Garrison | Discovered new exit (range 44) 6187 | -6/Garrison | Discovered new exit (range 45) 6187 | -6/Garrison | Discovered new exit (range 50) 6338 | -6/Garrison | Entered Factory 6338 | -6/Factory | Accompanied by 5 allies 6411 | -6/Factory | Repaired Transmission Jammer 6432 | -6/Factory | Identified exit to DSF 6512 | -6/Factory | Discovered new exit (range 16) 6548 | -6/Factory | Entered another Factory area 6548 | -5/Factory | Accompanied by 3 allies 6548 | -5/Factory | Evolved 2 slots: Utility x1, Weapon x1 6710 | -5/Factory | Identified exit to Garrison 6890 | -5/Factory | Discovered new exit (range 10) 6926 | -5/Factory | Entered Upper Caves 6926 | -5/Upper Caves | Accompanied by 3 allies 6932 | -5/Upper Caves | Met a Warlord Commander 6933 | -5/Upper Caves | Learned location of Warlord (-4) 6939 | -5/Upper Caves | Found Encrypted Comm Array 7032 | -5/Upper Caves | Identified exit to Upper Caves 7125 | -5/Upper Caves | Ambushed by research squad 7187 | -5/Upper Caves | Attracted the attention of an 0b10 outpost 8148 | -5/Upper Caves | Entered another Upper Caves area 8148 | -5/Upper Caves | Accompanied by 2 allies 8354 | -5/Upper Caves | Learned Factory terminal intel 8432 | -5/Upper Caves | Discovered new exit (range 5) 8440 | -5/Upper Caves | Entered Factory 8440 | -4/Factory | Evolved 2 slots: Power x1, Utility x1 8441 | -4/Factory | Loaded intel: 26 terminal locations 8572 | -4/Factory | Lost 17 parts (5p3n2u7w) 8907 | -4/Factory | Build established: Scavenger-Mutant 9223 | -4/Factory | Fabricated Arm. Huge Wheel? 9285 | -4/Factory | Self-destructed Last Messages --------------- Time: 84 Initiate build sequence. >>Build Building Arm. Huge Wheel... ETC: 84 09139_ ALERT: Unauthorized use of fabrication network. Dispatching investigation squad. [Achievement: Loot Pinata] 09163_ Acquired Hvy. Plasma Cannon. 09223_ >> FABRICATOR: Completed Arm. Huge Wheel? 09253_ ALERT: Rogue bot located, Programmers report to Factory Zone 7O. 09264_ A derelict emerges from the shadows: "What are you doing here, didn't you get that announcement? It sounds like they're after you!" 09265_ P4-E6R(g): "I have no idea how they do it but extermination squads are basically impossible to shake, this is bad..." 09266_ P4-E6R(g): "Maybe since they're already in the area we're better off sticking together. Just don't get me killed when they show up, yeah?" 09284_ Jacked G-67 Veteran... [Achievement: 5k Club] [Achievement: 10k Club] Map ----- +----------------------------------------------------+ | ?????????????????# ## ??# | | ?????????????????# ## # | | ?????????????????# ## """ # | | ?????????????????# ## """ # | | ????????????????## ## """ # | | ????????????????# # # | | ????????????????# # """ # | | ????????????????# + """ # | | ????????????????# # """ # | | ???????????" ???# # # | | ??????????"" ??# # """ # | | ??????????"" ??# # """ # | | ??????????? ?# # """ # | | ????????????!! # # # | | ?????????????? # ######## | | ??????????????? / # #? | | ????????????????# #""" #? | | ?????????######## #""" #? | | ?????? #""" #? | | ?????? # #? | | ???????" """ """ """ #""" #? | | ?????????""" """ """ #""" #? | | ??????"" """ """ """ #""" #? | | ????? ^ # #? | | ?????????""" """ # #? | | ???????? """ """ ###@###? | | ??????"" """ """ g #??? | | ?? "" g #??? | | ??????"" """ """ =F" g #??? | | ?????????""" """ " #??? | | ???????" """ """ "" = #??? | | ??? #??? | | ??? #??? | | ?????### ########+#####??? | | ???????###+##???# ! #??? | | ????????????????# #??? | | ????????????????# """ """ #??? | | ????????????????# """ """ #??? | | ????????????????# """ """ #??? | | ????????????????# #??? | | ????????????????# #??? | | ????????????????? #??? | | ????????????????##########???? | | ?????????????????????????????? | | ?????????????????????????????? | | ?????????????????????????????? | | ?????????????????????????????? | | ?????????????????????????????? | | ?????????????????????????????? | | ?????????????????????????????? | +----------------------------------------------------+ Best States ------------- Heat Dissipation 62 Coolant Potential 100 Energy Generation 59 Energy Capacity 1515 Matter Stores 322 Matter Capacity 350 Sight Range 16 Robot Scan Range 15 Terrain Scan Range 14 Terrain Scan Density 10 Jamming Range 14 Armor Coverage 225 Weapon Cycling 15 Evasion (%) 50 Targeting Accuracy 8 Recoil Reduction 4 Particle Charging 15 Offensive Hacking 12 Item Schematics ----------------- Hvy. Assault Rifle | -9/Materials | Scanalyzed Arm. Huge Wheel | -8/Storage | Hacked Robot Schematics ------------------ None Fabricated ------------ Arm. Huge Wheel | x2 | -7/Factory Arm. Huge Wheel | x2 | -4/Factory Alien Tech Used ----------------- None Achievements -------------- 10k Club 5k Club A New Friend It's Just You Just What I Needed Loot Pinata Made in Tau Ceti IV Novice Programmer Please Form A Line Serviceable Loadout The More The Merrier Total Silence Challenges ------------ None Game ------ Seed PointTerrainSystem Manual? 0 Play Time 01:55:31 Cumulative 4.5 hours Start 2023.06.13 @ 01:49:53 End 2023.06.14 @ 01:26:19 Sessions 2 Manual Loads 0 Difficulty Rogue Special Mode None Game No. 2 Rogue 2 Adventurer 0 Explorer 0 Win Type - Total 0 Types 0/0/0/0/0/0/0/0/0 Lore% 9 Gallery% 9 Achievement% 10 Wizard Run 0 Options --------- ASCII 0 Keyboard 0 Movement Numpad Keybinds 0 Fullscreen 1 Font 12/Terminus Map View 83x54 Tactical HUD 1 Map Filters NONE Filters NONE Steam 1 RUN: 1f9bdf1e-7d40-44c5-84f0-989c6bd8ab64